Cogmind - Beta 10.2 @@@ ROGUE MODE // 2020.12.27 @ 14:12:53 Player: SureStep Result: Self-destructed Performance ------------- Evolutions (1) 500 Regions Visited (3) 600 Robots Destroyed (44) 220 Value Destroyed (927) 927 Prototype IDs (6) 120 Alien Tech Used (0) 0 Bonus (83) 83 TOTAL SCORE: 2450 Bonus ------- Follower Combat Kills 83 Cogmind --------- Core Integrity 363/400 Matter 300/300 Energy 680/680 System Corruption 0% Temperature Cool (214) Movement Rolling (110) Ox1 Location -9/Materials Parts ------- > --- POWER (1) -------- Heavy Ion Engine > --- PROPULSION (2) --- Compact Wheel > --- UTILITY (4) ------ Medium Storage Unit High-capacity Battery Advanced Targeting Computer Improved Light Armor Plating > --- WEAPON (2) ------- Heavy EM Pulse Gun > --- INVENTORY (8) ---- Ion Engine Compact Wheel Compact Wheel Heat Sink High-capacity Battery (400) Advanced Targeting Computer Advanced Beam Cannon Grenade Launcher Peak State ------------ > --- POWER ------------ Heavy Ion Engine > --- PROPULSION ------- Compact Wheel Compact Wheel > --- UTILITY ---------- Medium Storage Unit High-capacity Battery Advanced Targeting Computer Improved Light Armor Plating > --- WEAPON ----------- Heavy EM Pulse Gun Heavy EM Pulse Gun > --- INVENTORY -------- Compact Wheel Compact Wheel Heat Sink High-capacity Battery Advanced Targeting Computer Advanced Beam Cannon Grenade Launcher [Rating: 18] Favorites ----------- Power Ion Engine Engine Ion Engine Propulsion Compact Wheel Wheel Compact Wheel Utility High-capacity Battery Device Sensor Array Storage High-capacity Battery Processor Advanced Targeting Computer Protection Improved Light Armor Plating Weapon Grenade Launcher Energy Gun Medium Laser Energy Cannon Advanced Beam Cannon Launcher Grenade Launcher Special Melee Weapon Datajack Build | -11 -10 -10 -9 ------- Run | Scr Mat Min Mat Slots Evolved 2 | . . . 2 Power . | . . . . Propulsion . | . . . . Utility 2 | . . . 2 Weapon . | . . . . Parts Attached 41 | 6 16 4 15 Power 3 | 1 . 1 1 Engine 3 | 1 . 1 1 Core . | . . . . Reactor . | . . . . Propulsion 6 | 2 3 1 . Treads . | . . . . Leg . | . . . . Wheel 6 | 2 3 1 . Hover . | . . . . Flight . | . . . . Utility 15 | 1 5 . 9 Device 6 | . 3 . 3 Storage 4 | 1 2 . 1 Processor 4 | . . . 4 Hackware . | . . . . Protection 1 | . . . 1 Artifact . | . . . . Weapon 17 | 2 8 2 5 Energy Gun 11 | 2 4 2 3 Energy Cannon 1 | . . . 1 Ballistic Gun . | . . . . Ballistic Cannon . | . . . . Launcher 4 | . 3 . 1 Special Weapon . | . . . . Impact Weapon . | . . . . Slashing Weapon . | . . . . Piercing Weapon . | . . . . Special Melee Weapon 1 | . 1 . . Unidentified Prototypes 1 | . . . 1 Parts Lost 8 | . 1 4 3 Power . | . . . . Propulsion 2 | . . 1 1 Utility 2 | . 1 . 1 Weapon 4 | . . 3 1 Highest Loss Streak 2 | . 1 2 2 Average Slot Usage (%) 97 | . 99 94 98 Engine 13 | . 14 14 10 Wheel 26 | . 28 27 21 Device 6 | . 7 . 12 Storage 22 | . 20 28 20 Processor 2 | . . . 7 Protection 1 | . . . 3 Energy Gun 16 | . 16 18 16 Launcher 6 | . 11 5 1 Naked Turns . | . . . . Heaviest Build 29 | 11 22 22 29 Greatest Support 32 | 26 32 32 32 Greatest Overweight (x) 1 | . . 1 . Average Overweight (x) . | . . . . Largest Inventory Capacity 8 | 6 8 8 8 Average Capacity 7 | 5 6 8 8 Most Carried 8 | 4 7 6 8 Average Carried 5 | . 4 5 5 Final Capacity 8 | 6 8 8 8 Final Carried 8 | 1 6 5 8 Class Distribution -------------------- 100% | Mutant Dominant Class ---------------- Mutant | -10/Materials Mutant | -10/Mines Mutant | -9/Materials Resources | -11 -10 -10 -9 ----------- Run | Scr Mat Min Mat Matter Collected 735 | 260 244 76 155 Remotely . | . . . . Salvage Created 1475 | 92 306 323 754 Parts 83 | 3 22 23 35 Haulers Intercepted 3 | . 1 . 2 Recyclers Shooed 3 | 1 . 1 1 Parts Field Recycled . | . . . . Retrieved Matter . | . . . . Parts Self-Destructed . | . . . . Prevented . | . . . . Kills | -11 -10 -10 -9 ------- Run | Scr Mat Min Mat Combat Hostiles Destroyed 31 | . 10 9 12 Guns 19 | . 5 6 8 Cannons 1 | . . . 1 AOE 10 | . 5 3 2 Classes Destroyed 7 | 2 4 . 1 Tunneler 1 | 1 . . . Hauler 3 | . 1 . 2 Recycler 5 | 1 . 2 2 Watcher 4 | . 3 . 1 Swarmer 15 | . 3 9 3 Grunt 15 | . 7 . 8 Sentry 1 | . . . 1 Best Kill Streak 6 | 2 6 4 4 Combat Bots Only 6 | . 6 3 4 Max Kills in Single Turn 2 | 1 2 2 2 Gunslinging . | . . . . Exploded 2 | . 2 2 1 Melee . | . . . . Uniques/NPCs Destroyed . | . . . . Combat | -11 -10 -10 -9 -------- Run | Scr Mat Min Mat Damage Taken 875 | . 318 283 274 Core 141 | . 58 46 37 Absorbed by Shields 34 | . . . 34 Core Remaining (%) 79 | 100 . 58 . Volleys Fired 136 | 12 40 36 48 Largest 2 | 2 2 2 2 Hottest 118 | 80 90 100 118 Shots Fired 216 | 24 62 47 83 Gun 198 | 24 50 46 78 Cannon 4 | . . . 4 Launcher 14 | . 12 1 1 Special . | . . . . Kinetic . | . . . . Thermal 103 | 24 36 35 8 Explosive 14 | . 12 1 1 Electromagnetic 99 | . 14 11 74 Robot Hit Streak 9 | 6 6 5 9 Robot Miss Streak 4 | 3 3 4 3 Penetration Max . | . . . . Secondary Targets 1 | . . 1 . Max Gunslinging Chain 1 | . . 1 . Shots Hit Robots 129 | 14 37 22 56 Core Hits 63 | 3 26 14 20 Critical Hits . | . . . . Critical Kills . | . . . . Critical Parts Destroyed . | . . . . Melee Attacks 1 | . 1 . . Impact . | . . . . Slashing . | . . . . Piercing . | . . . . Sneak Attacks . | . . . . Combat Hostiles . | . . . . Follow-up Attacks . | . . . . Damage Inflicted 2734 | 145 1064 453 1072 Guns 1681 | 145 430 290 816 Cannons 62 | . . . 62 Explosions 991 | . 634 163 194 Melee . | . . . . Ramming . | . . . . Kinetic . | . . . . Thermal 917 | 145 305 263 204 Explosive 850 | . 634 125 91 Electromagnetic 967 | . 125 65 777 Impact . | . . . . Slashing . | . . . . Piercing . | . . . . Highest Corruption 1 | . 1 1 . Average Corruption 1 | . 1 1 . Corruption Purged . | . . . . Effects 3 | . . 3 . Message Errors 2 | . . 2 . Data Loss (minor) 1 | . . 1 . Overload Shots . | . . . . Overflow Damage 10 | . . . 10 Projectiles . | . . . . Explosions 10 | . . . 10 Melee . | . . . . Knockbacks . | . . . . Impact . | . . . . Kinetic . | . . . . Secondary . | . . . . Self-Inflicted Damage 68 | . 10 58 . Shots 3 | . 1 2 . Rammed . | . . . . Targets Rammed . | . . . . Kicked . | . . . . Crushed . | . . . . Highest Temperature 214 | 126 138 156 214 Average Temperature 59 | 61 31 58 81 Received Heat Transfer 255 | . 126 . 129 Siege Activations . | . . . . Robots Corrupted 2 | . . . 2 Combat Hostiles 1 | . . . 1 Parts Fried 7 | . 1 . 6 Impact Corruptions . | . . . . Robots Melted . | . . . . Combat Hostiles . | . . . . Parts Melted 1 | . . . 1 Heat Transferred 2207 | 325 794 716 372 Parts Sabotaged . | . . . . Parts Stolen . | . . . . Parts Stripped . | . . . . Power Chain Reactions 3 | . . 1 2 Missiles Intercepted . | . . . . Alert | -11 -10 -10 -9 ------- Run | Scr Mat Min Mat Peak Influence 255 | 10 243 145 255 Initial 6 | . 6 . . Average 85 | 4 85 59 121 Maximum Alert Level 1 | . 1 . 1 Low Security (%) 88 | 100 86 100 78 Level 1 11 | . 13 . 21 Level 2 . | . . . . Level 3 . | . . . . Level 4 . | . . . . Level 5 . | . . . . High Security . | . . . . Max Security . | . . . . Squads Dispatched 4 | . 2 . 2 Investigation 1 | . . . 1 Extermination . | . . . . Reinforcement 3 | . 2 . 1 Assault . | . . . . Garrison . | . . . . Intercept . | . . . . Construction Impeded . | . . . . Haulers Reinforced . | . . . . Stealth | -11 -10 -10 -9 --------- Run | Scr Mat Min Mat Distress Signals 3 | . 1 . 2 Communications Jammed . | . . . . Distress Signals . | . . . . Times Spotted 58 | . 24 10 24 Peak Tracking Total 9 | . 9 3 5 Tactical Retreats 6 | . 1 1 4 Traps | -11 -10 -10 -9 ------- Run | Scr Mat Min Mat Traps Triggered 1 | . . . 1 Indirectly . | . . . . Trap Hack Attempts . | . . . . Triggered . | . . . . Disarmed . | . . . . Reprogrammed . | . . . . Reused . | . . . . Traps Extracted . | . . . . Installed . | . . . . Triggered . | . . . . Machines | -11 -10 -10 -9 ---------- Run | Scr Mat Min Mat Machines Disabled 5 | . 2 . 3 Max in Single Turn 1 | . 1 . 1 Machines Sabotaged . | . . . . Garrisons Compromised . | . . . . Overloaded Fab Kills . | . . . . Fab Network Shutdowns . | . . . . Hacking | -11 -10 -10 -9 --------- Run | Scr Mat Min Mat Machines Accessed 8 | . 5 . 3 Terminals 7 | . 4 . 3 Fabricators . | . . . . Repair Stations 1 | . 1 . . Recycling Units . | . . . . Scanalyzers . | . . . . Garrison Access . | . . . . Total Hacks 20 | . 14 . 6 Successful 13 | . 9 . 4 Failed 7 | . 5 . 2 Catastrophic . | . . . . Database Lockouts . | . . . . Manual . | . . . . Terminals 16 | . 10 . 6 Fabricators . | . . . . Repair Stations 4 | . 4 . . Recycling Units . | . . . . Scanalyzers . | . . . . Garrison Access . | . . . . Terminal Hacks 10 | . 6 . 4 Prototype ID Bank 3 | . 2 . 1 Emergency Access Points 1 | . 1 . . Alert Level 1 | . 1 . . Locate Traps 2 | . 1 . 1 Hauler Manifests 1 | . 1 . . Zone Layout 2 | . . . 2 Fabricator Hacks . | . . . . Repair Station Hacks 3 | . 3 . . Scan Component 2 | . 2 . . Repair 1 | . 1 . . Recycling Unit Hacks . | . . . . Scanalyzer . | . . . . Garrison Access Hacks . | . . . . Unauthorized Hacks . | . . . . Terminals . | . . . . Fabricators . | . . . . Repair Stations . | . . . . Recycling Units . | . . . . Scanalyzers . | . . . . Garrison Access . | . . . . Data Cores Recovered . | . . . . Used . | . . . . Hacking Detections 5 | . 3 . 2 Full Trace Events 3 | . 3 . . Feedback Events 1 | . 1 . . Corruption 1 | . 1 . . Feedback Blocked . | . . . . Robot Schematics Acquired . | . . . . Robots Built . | . . . . Matter . | . . . . Time . | . . . . Total Robot Build Rating . | . . . . Part Schematics Acquired . | . . . . Parts Built . | . . . . Matter . | . . . . Time . | . . . . Total Part Build Rating . | . . . . Parts Repaired 1 | . 1 . . Time 26 | . 26 . . Parts Recycled . | . . . . Recycled Matter . | . . . . Retrieved Matter . | . . . . Retrieved Components . | . . . . Parts Scanalyzed . | . . . . Part Schematics Acquired . | . . . . Parts Damaged . | . . . . Bothacking | -11 -10 -10 -9 ------------ Run | Scr Mat Min Mat Used RIF Installer . | . . . . Robots Hacked 1 | . 1 . . Non-combat . | . . . . Combat 1 | . 1 . . Robot Hacks Applied 1 | . 1 . . parse_system 1 | . 1 . . Relay Couplers Released . | . . . . Robots Rewired . | . . . . Allies Hacked . | . . . . Hacks Repelled . | . . . . Allies | -11 -10 -10 -9 -------- Run | Scr Mat Min Mat Total Allies 3 | . . 3 . Largest Group 3 | . . 3 3 Highest-Rated Group 40 | . . 40 40 Highest-Rated Ally 16 | . . 16 16 Total Orders . | . . . . Ally Attacks 29 | . . . 29 Total Damage 309 | . . . 309 Kills 3 | . . . 3 Allies Corrupted . | . . . . Allies Melted . | . . . . Intel | -11 -10 -10 -9 ------- Run | Scr Mat Min Mat Robot Analysis Total . | . . . . Derelict Logs Recovered 1 | . . 1 . Drone Launches . | . . . . Drone Recoveries . | . . . . Exploration | -11 -10 -10 -9 ------------- Run | Scr Mat Min Mat Turns Passed 3150 | 120 1349 848 833 Spaces Moved 2339 | 36 996 676 631 Core 7 | 7 . . . Treads . | . . . . Legs . | . . . . Wheels 2332 | 29 996 676 631 Hover . | . . . . Flight . | . . . . Fastest Speed 50 | 50 80 100 100 Average Speed 97 | 82 94 100 100 Slowest Speed 110 | 90 100 110 100 Overloaded Moves . | . . . . Propulsion Burnouts . | . . . . Robots Hopped . | . . . . Cave-ins Triggered . | . . . . Exploration Rate (%) 65 | 6 99 98 59 Regions Visited 3 Branch Regions 1 Pre-discovered Areas . | . . . . Known Exits Taken 1 | . . 1 . Unknown Exits Taken 2 | 1 1 . . Scrap Searched 2 | . . 2 . Spaces Dug 9 | . . 9 . Terrain Destroyed 89 | . 59 13 17 Melee . | . . . . Projectile . | . . . . AOE 89 | . 59 13 17 Terrain Rammed . | . . . . Walls Destroyed . | . . . . Machines Disabled . | . . . . Actions | -11 -10 -10 -9 --------- Run | Scr Mat Min Mat Total 3016 | 102 1355 801 758 Wait 417 | 42 260 81 34 Move 2336 | 35 995 675 631 Hop . | . . . . Pick Up 47 | 7 22 3 15 Fast Attach . | . . . . Attach 40 | 6 15 4 15 Detach 18 | . 7 1 10 Swap 1 | . 1 . . Drop 20 | . 14 1 5 Fire 136 | 12 40 36 48 Melee 1 | . 1 . . Ram . | . . . . Kick . | . . . . Crush . | . . . . Escape Stasis . | . . . . Rewire . | . . . . Trap . | . . . . Miscellaneous . | . . . . Route ------- -11/Scrapyard -10/Materials (discovered 5 exits: *Mat x3 / [*Min x2]) -10/Mines (discovered 2 exits: *Mat x2) -9/Materials (discovered 2 exits: [*Mat] / [*Min]) History --------- Turn | Location | Event 18 | -11/Scrapyard | Discovered new exit (range 16) 121 | -11/Scrapyard | Entered Materials 309 | -10/Materials | Build established: Mutant 604 | -10/Materials | Discovered new exit (range 16) 884 | -10/Materials | Discovered new exit (range 5) 1044 | -10/Materials | Discovered new exit (range 12) 1107 | -10/Materials | Discovered new exit (range 16) 1187 | -10/Materials | Discovered new exit (range 5) 1333 | -10/Materials | Repaired EM Pulse Gun 1470 | -10/Materials | Entered Mines 1601 | -10/Mines | Found a hidden stash of uninstalled traps 1674 | -10/Mines | Identified exit to Materials 1678 | -10/Mines | Discovered exit to Materials (range 9) 2216 | -10/Mines | Assisted by bots powering up and referring to "LRC-V3" 2318 | -10/Mines | Entered Materials 2318 | -9/Materials | Accompanied by 3 allies 2318 | -9/Materials | Evolved 2 slots: Utility x2 2665 | -9/Materials | Discovered new exit (range 15) 2817 | -9/Materials | Discovered new exit (range 15) 3151 | -9/Materials | Self-destructed Last Messages --------------- K-01 Serf collects debris. R-06 Scavenger collects Aluminum Leg. K-01 Serf collects debris. G-34 Mercenary misfires. Destroyed Sml. Laser. Chain reaction triggered in Ion Engine. Heat Sink fried. G-34 Mercenary destroyed. U-05 Engineer lays Concrete. U-05 Engineer builds a Wall. Triggered Alarm Trap. An alarm sounds. ALERT: Alarm triggered, dispatching investigation squad. G-34 Mercenary destroyed. G-47 Trooper destroyed. K-01 Serf collects debris. Hvy. EM Pulse Gun destroyed. G-34 Mercenary destroyed. Com. Wheel destroyed. G-34 Mercenary destroyed. Map ----- +----------------------------------------------------+ | ????# ##+##### ## !! ## "" | | ????# ^ ## !! ## "" | | ????################ ^ ## ## "" | | ???????????????????#^ ==! ## ## | | ????????????? ?????# ==! ## ?# | | ????????????? ????## == ###### ?####### | | ????????????? ???#" #?????#???????# | | ?????????????# ???#"% #?????????????# | | ?????????????# ???## "##### #?????????????# | | ?????????????# ##### ##???? #?????????????# | | ?????????????+ #????? #?????????????# | | ?????????????# #????? #?????????????# | | ?????????????# ##+######+##????????????? | | ?????????????# ## #?????????#### | | ?????????????# ## """ #?????????# | | ?????????????# ## "T" #?????????# | | ?????????????# ## #?????????# | | ????????????? ? *## """"" #?????????# | | ???????######???#%## """"" #?????????# | | ???????? ??#[ + """"" #?????????# | | ?????????""" ?# # #?????????#### | | ??????????? #* ######+############### = | | ????????????? =#k% k = | | ???????????????*+%! ##### ! | | ????????????????#= #???# ! | | ????????????????#=@ """ ##### ##???# * | | ????????????????# """ #???# #????# * | | ????????????????# """ #???# #????# ### | | ?????????######## #???# ######+### | | ?????????# # #???# ## | | ?????????# """ # #####+## ! | | ?????????# """ # # # ! | | ?????????# """ + ######## " # """ ! | | ?????????# # #??????# """ # """ | | ?????????# # #??????#[ "" # """ | | ?????????######## ######## """ # | | ????????????????# # "" # ####### | | ????????????????# + """ #???????? | | ????????? # """ #???????? | | ????????# ########## # """ #???????? | | ????????# ???????????# # " #???????? | | ????????#??????????????# # #???????? | | ???????????????????????# # #???????? | | ???????????????????????# # ] #???????? | | ???????????????????????# ########???????? | | ???????????????????????# #??????????????? | | ???????????????????????# +??????????????? | | ???????????????????????# #??????????????? | | ???????????????????????# #??????????????? | | ???????????????????????# #??????????????? | +----------------------------------------------------+ Best States ------------- Heat Dissipation 38 Energy Generation 14 Energy Capacity 680 Matter Stores 300 Matter Capacity 300 Sight Range 18 Robot Scan Range 10 Terrain Scan Density 10 Armor Coverage 150 Evasion (%) 44 Targeting Accuracy 8 Item Schematics ----------------- None Robot Schematics ------------------ None Fabricated ------------ Nothing Alien Tech Used ----------------- None Achievements -------------- None Challenges ------------ None Game ------ Seed AntimatterTrackerBeam Manual? 0 Play Time 00:46:37 Cumulative 24.3 hours Start 2020.12.27 @ 12:50:51 End 2020.12.27 @ 14:12:53 Sessions 1 Manual Loads 0 Difficulty Rogue Special Mode None Game No. 29 Rogue 29 Adventurer 0 Explorer 0 Win Type - Total 0 Types 0/0/0/0/0/0/0/0/0 Lore% 10 Gallery% 15 Achievement% 14 Wizard Run 0 Options --------- ASCII 0 Keyboard 0 Movement Mouse Keybinds 0 Fullscreen 1 Font 18/SmallcapsGlow Map View 76x50 Tactical HUD 0 Map Filters NONE Filters NONE Steam 1 RUN: 2a823966-c6e7-44c7-822c-1db7243f6590